lending/lending_fUSD_20251018
["ID","MTS","AMOUNT","RATE_DAILY","PERIOD"]
[391747427,1760770231926,-500.0,0.00021888,3]
[391747428,1760770231936,-195.0,0.00021888,2]
[391747429,1760770231946,-195.0,0.00021888,2]
[391747430,1760770231955,-152.13,0.00025237,2]
[391747431,1760770231965,-150.6,0.00025557,2]
[391747432,1760770231975,-658.76823637,0.00025847,2]
[391747433,1760770231986,-852.68973297,0.00025847,2]
[391747434,1760770231997,-506.14406425,0.00025847,2]
[391747435,1760770232014,-522.04790989,0.00025847,2]
[391747436,1760770232026,-322.49005652,0.00025847,2]
[391747437,1760770232036,-228.34,0.00026676,2]
[391747438,1760770232046,-170.28,0.00027246,2]
[391747439,1760770232056,-158.0,0.00031,120]
[391747440,1760770232066,-152.0,0.00031,120]
[391747441,1760770232076,-500.0,0.00031506,120]
[391747442,1760770232087,-150.0,0.00032259,2]
[391747443,1760770232098,-14689.16,0.00032361,2]
[391747444,1760770232107,-336.00026839,0.00032398,2]
[391747445,1760770232118,-500.0,0.000324,5]
[391747446,1760770232127,-500.0,0.000324,5]
[391747447,1760770232137,-500.21898395,0.000324,5]
[391747448,1760770232147,-500.0,0.000324,5]
[391747449,1760770232157,-1091.0,0.00032525,5]
[391747450,1760770232167,-250.0,0.00032628,7]
[391747451,1760770232176,-228.34,0.00033165,2]
[391747452,1760770232185,-190.88,0.0003366,91]
[391747453,1760770232195,-158.0,0.000337,120]
[391747454,1760770232205,-200.0,0.00034223,2]
[391747455,1760770232214,-1091.0,0.00034237,5]
[391747456,1760770232223,-568.29,0.00035,120]
[391747457,1760770232232,-186.92,0.00035,120]
[391747458,1760770232242,-546.82,0.00035,120]
[391747459,1760770232251,-300.0,0.0003528,2]
[391747460,1760770232260,-336.48,0.0003528,2]
[391747461,1760770232270,-1658.83,0.0003528,2]
[391747462,1760770232279,-300.0,0.0003528,2]
[391747463,1760770232288,-875.13443439,0.00035362,2]
[391747464,1760770232298,-804.05,0.00035427,2]
[391747465,1760770232307,-875.13443439,0.0003586,2]
[391747466,1760770232316,-946.7203,0.000359,2]
[391747467,1760770232327,-2274.90101627,0.00035927,2]
[391747468,1760770232337,-500.0,0.00035973,5]
[391747469,1760770232346,-151.0,0.00035997,14]
[391747470,1760770232356,-500.0,0.00035999,17]
[391747471,1760770232365,-500.0,0.00035999,17]
[391747472,1760770232375,-500.0,0.00035999,17]
[391747473,1760770232384,-500.0,0.00035999,2]
[391747474,1760770232394,-500.0,0.00035999,15]
[391747475,1760770232403,-500.0,0.00035999,15]
[391747476,1760770232412,-500.0,0.00035999,15]
[391747477,1760770232421,-411.1757678,0.00035999,15]
[391747478,1760770232430,-900.0,0.00036,7]
[391747479,1760770232439,-900.0,0.00036,7]
[391747480,1760770232449,-158.0,0.00036,30]
[391747481,1760770232458,-48967.15764373,0.00036,30]
[391747482,1760770237461,-152.0,0.000325,120]
[391747483,1760770237471,-152.0,0.00034,120]
[391747484,1760770237480,-152.0,0.000355,120]
[391747485,1760770237491,-1209.04189401,0.00036,30]
[391747486,1760770237674,-3581.91735064,0.00036,30]
[391747487,1760770237685,-36208.33828832,0.00036,30]
[391747494,1760770239644,-3051.1503055,0.00036,30]
[391747495,1760770239675,-8249.06203584,0.00036,30]
[391747496,1760770239734,-393.423437,0.00036,30]
[391747497,1760770239879,-2350.35799999,0.00036,30]
[391747498,1760770239891,-2667.1397038,0.00036,30]
[391747499,1760770239902,-601.08,0.00036,30]
[391747500,1760770239914,-2823.96487722,0.00036,30]
[391747501,1760770239929,-8409.01170605,0.00036,30]
[391747502,1760770239940,-764.80689779,0.00036,30]
[391747503,1760770239974,-591.566251,0.00036,30]
[391747504,1760770239986,-130131.98160911,0.00036,30]
[391747505,1760770239996,-7680.84997238,0.00036027,2]
[391747506,1760770240005,-1091.0,0.00036039,5]
[391747507,1760770240017,-941.438,0.0003605,44]
[391747508,1760770240027,-181.615,0.0003605,44]
[391747509,1760770240038,-3864.315889,0.00036062,8]
[391747510,1760770240048,-354.6347971,0.00036073,15]
[391747511,1760770240057,-300.46,0.00036082,2]
[391747512,1760770240067,-159.403645,0.00036089,17]
[391747513,1760770240077,-9561.64444858,0.00036092,2]
[391747514,1760770240087,-1213.4,0.00036102,2]
[391747515,1760770240096,-1093.6,0.00036102,2]
[391747516,1760770240106,-150.0,0.00036102,2]
[391747517,1760770240115,-827.46,0.00036102,2]
[391747518,1760770240125,-1093.6,0.00036102,2]
[391747519,1760770240135,-150.0,0.00036102,2]
[391747520,1760770240145,-826.06,0.00036102,2]
[391747521,1760770240154,-168.27,0.00036102,2]
[391747522,1760770240164,-168.27,0.00036102,2]
[391747523,1760770240173,-150.0,0.00036102,2]
[391747524,1760770240183,-151.42,0.00036102,2]
[391747525,1760770240192,-150.0,0.00036102,2]
[391747526,1760770240201,-151.0,0.00036108,2]
[391747527,1760770240211,-151.0,0.00036108,2]
[391747528,1760770240220,-151.0,0.00036108,2]
[391747529,1760770240229,-151.0,0.00036108,2]
[391747530,1760770240239,-151.0,0.00036108,2]
[391747531,1760770240248,-151.0,0.00036108,2]
[391747533,1760770240257,-151.0,0.00036108,2]
[391747535,1760770240267,-161.43415915,0.00036108,2]
[391747536,1760770240276,-57369.8666915,0.0003612,2]
[391747537,1760770240285,-162.72,0.0003612,2]
[391747538,1760770240295,-875.13443439,0.00036126,2]
[391747539,1760770240305,-89131.83562941,0.0003613,2]
[391747541,1760770242682,-166.66,0.00033625,30]
[391747542,1760770242692,-166.66,0.00034333,30]
[391747543,1760770242702,-166.66,0.00035041,30]
[391747544,1760770242711,-67.58996216,0.00035749,30]
[391747545,1760770242722,-99.07003784,0.00035749,30]
[391747546,1760770242731,-3742.02313744,0.0003613,2]
[391747547,1760770242825,-11223.24420001,0.0003613,2]
[391747551,1760770245721,-352.09,0.000361,2]
[391747552,1760770245731,-2259.96041244,0.0003613,2]
[391747553,1760770245742,-3286.22712857,0.0003613,2]
[391747738,1760770629113,500.0,0.0002266,120]
[391747739,1760770629214,500.0,0.00022086,120]
[391747740,1760770629329,500.0,0.00024746,120]
[391747741,1760770629427,500.0,0.00024746,120]
[391747742,1760770629525,198.67309033,0.00024746,120]
[391747834,1760771006630,2653.73548706,0.00032564,120]
[391747838,1760771034481,1585.70050437,0.00032564,120]
[391747896,1760771195756,155.0,0.00027397,120]
[391748001,1760771431725,-629.09,0.00015777,2]
[391748002,1760771431734,-245.72556192,0.00016607,2]
[391748003,1760771431849,-383.36443808,0.00016607,2]
[391748004,1760771431859,-250.0,0.00017,2]
[391748005,1760771431869,-238.95416191,0.00017438,2]
[391748006,1760771431881,-390.13583809,0.00017438,2]
[391748007,1760771431891,-500.0,0.0001785,2]
[391748008,1760771431905,-313.30816191,0.00018268,2]
[391748009,1760771431916,-315.78183809,0.00018268,2]
[391748010,1760771431925,-106.38141847,0.000187,2]
[391748011,1760771431975,-393.61858153,0.000187,2]
[391748012,1760771431985,-491.88769988,0.00019098,2]
[391748013,1760771431996,-137.20230012,0.00019098,2]
[391748014,1760771432006,-188.8294228,0.00019586,2]
[391748015,1760771432020,-311.1705772,0.00019586,2]
[391748016,1760771432030,-316.4545628,0.00019586,2]
[391748017,1760771432042,-183.5454372,0.00019586,2]
[391748018,1760771432052,-440.70140108,0.00019586,2]
[391748019,1760771432063,-59.29859892,0.00019586,2]
[391748020,1760771432073,-567.73555519,0.00019929,2]
[391748022,1760771432085,-61.35444481,0.00019929,2]
[391748023,1760771432095,-150.0,0.000206,2]
[391748024,1760771432106,-629.09,0.00020759,2]
[391748025,1760771432115,-213.98510695,0.000208,2]
[391748026,1760771432125,-475.74147678,0.00020828,2]
[391748027,1760771432135,-213.98510695,0.00021,2]
[391748028,1760771432144,-1030.32224399,0.00021199,2]
[391748029,1760771432159,-169.67775601,0.00021199,2]
[391748030,1760771432169,-213.98510695,0.000212,2]
[391748031,1760771432179,-213.98510695,0.000215,2]
[391748032,1760771432188,-222.0,0.000215,2]
[391748034,1760771432198,-629.09,0.00021589,2]
[391748035,1760771432207,-213.98510695,0.000217,2]
[391748036,1760771432216,-629.09,0.0002242,2]
[391748037,1760771432226,-1680.0,0.00023164,2]
[391748038,1760771432236,-629.09,0.0002325,2]
[391748040,1760771432246,-501.7894212,0.00023573,2]
[391748042,1760771432256,-300.0,0.00023598,2]
[391748044,1760771432265,-2720.5976055,0.00023599,2]
[391748045,1760771432275,-54037.92431399,0.000236,2]
[391748047,1760771432285,-629.09,0.0002408,2]
[391748049,1760771432295,-629.09,0.00024911,2]
[391748051,1760771432304,-768.0,0.00025312,2]
[391748053,1760771432314,-629.09,0.00025741,2]
[391748055,1760771432323,-629.09,0.00026571,2]
[391748056,1760771432333,-181.615,0.00026703,14]
[391748058,1760771432343,-1031.9,0.00026703,14]
[391748060,1760771432352,-629.09,0.00027402,2]
[391748062,1760771432362,-629.09,0.00028232,2]
[391748063,1760771432372,-500.0,0.00028904,2]
[391748064,1760771432382,-629.09,0.00029063,2]
[391748065,1760771432393,-629.09,0.00029893,2]
[391748068,1760771432411,-629.09,0.00030723,2]
[391748070,1760771432422,-160.58,0.00031283,2]
[391748071,1760771432433,-199.62,0.00031302,30]
[391748072,1760771432443,-356.5,0.00031437,2]
[391748073,1760771432453,-319.39,0.00031497,2]
[391748074,1760771432463,-1474.23,0.00031497,2]
[391748075,1760771432472,-629.09,0.00031554,2]
[391748076,1760771432482,-1000.0,0.0003165,2]
[391748078,1760771432715,-892.88,0.00032208,120]
[391748079,1760771432726,-319.39,0.00032678,2]
[391748080,1760771432735,-319.39,0.00033859,2]
[391748081,1760771432745,-1000.0,0.00034424,2]
[391748082,1760771432755,-874.78938815,0.00034708,2]
[391748083,1760771432764,-666.0,0.00034965,3]
[391748084,1760771432774,-874.78938815,0.00035,2]
[391748085,1760771432783,-319.39,0.0003504,2]
[391748086,1760771432793,-874.78938815,0.00035131,2]
[391748087,1760771432802,-474.87,0.0003524,2]
[391748088,1760771432812,-695.39,0.0003524,2]
[391748089,1760771432822,-474.87,0.0003524,2]
[391748090,1760771432831,-695.39,0.0003524,2]
[391748091,1760771432841,-474.87,0.0003524,2]
[391748092,1760771432850,-695.39,0.0003524,2]
[391748093,1760771432860,-474.08,0.0003524,2]
[391748094,1760771432874,-695.39,0.00035241,2]
[391748095,1760771432884,-949.6,0.00035241,2]
[391748096,1760771432894,-690.62,0.00035242,120]
[391748097,1760771432908,-2876.72946463,0.00035293,2]
[391748098,1760771432925,-2647.57839088,0.00035293,2]
[391748099,1760771432937,-1000.0,0.00035293,2]
[391748109,1760771437668,-1852.42,0.00029196,2]
[391748110,1760771437677,-3.46,0.00035293,2]
[391748111,1760771437711,-821.61858714,0.00035293,2]
[391748112,1760771437849,-564.1761,0.00035293,2]
[391748113,1760771437863,-7318.04745735,0.00035293,2]
[391748114,1760771437872,-942.53,0.00035296,2]
[391748115,1760771437882,-874.78938815,0.00035502,2]
[391748116,1760771437892,-314.68,0.00035699,2]
[391748117,1760771437906,-300.0,0.000357,13]
[391748118,1760771437916,-4079.6604,0.0003577,2]
[391748119,1760771437926,-413.73,0.00035788,2]
[391748120,1760771437937,-176.09,0.00035788,2]
[391748121,1760771437946,-301.24,0.00035788,2]
[391748122,1760771437956,-176.09,0.00035788,2]
[391748123,1760771437965,-546.8,0.00035788,2]
[391748124,1760771437975,-413.73,0.00035788,2]
[391748125,1760771437985,-176.09,0.00035788,2]
[391748126,1760771437994,-413.73,0.00035788,2]
[391748127,1760771438003,-413.73,0.00035788,2]
[391748128,1760771438014,-413.73,0.00035788,2]
[391748129,1760771438023,-827.38,0.00035788,2]
[391748130,1760771438033,-176.0,0.00035788,2]
[391748131,1760771438042,-700.0,0.000358,13]
[391748132,1760771438052,-823.96,0.00035808,2]
[391748133,1760771438062,-874.78938817,0.00035835,2]
[391748135,1760771438072,-1000.0,0.000359,13]
[391748136,1760771438081,-2500.0,0.00035965,2]
[391748137,1760771438090,-7680.84997238,0.00035988,2]
[391748138,1760771438100,-354.6347971,0.0003599,15]
[391748139,1760771438109,-3864.315889,0.0003599,8]
[391748140,1760771438118,-216.82869814,0.00035994,2]
[391748141,1760771438126,-200.0,0.00036,60]
[391748142,1760771438135,-158.0,0.00036,30]
[391748143,1760771438144,-250.99196892,0.00036,10]
[391748144,1760771438153,-2467.47141009,0.00036008,2]
[391748145,1760771438163,-1000.0,0.0003603,2]
[391748146,1760771438173,-1482.0111046,0.00036065,2]
[391748147,1760771438183,-27784.7543597,0.00036065,2]
[391748148,1760771438193,-29818.44450578,0.00036065,2]
[391748149,1760771438205,-402.52083682,0.00036065,2]
[391748150,1760771438217,-498.98998669,0.00036065,2]
[391748151,1760771438229,-1251.33867206,0.00036065,2]
[391748153,1760771439866,-1005.6716365,0.00035965,2]
[391748154,1760771439880,-1591.64265121,0.00035965,2]
[391748155,1760771439889,-795.57036225,0.00036065,2]
[391748156,1760771439905,-376.71154186,0.00036065,2]
[391748157,1760771439916,-841.66329988,0.00036065,2]
[391748158,1760771440017,-694.10010756,0.00036065,2]
[391748159,1760771440032,-4851.30792477,0.00036065,2]
[391748160,1760771440169,-35470.69432543,0.00036065,2]
[391748161,1760771440180,-12765.8842459,0.00036065,2]
[391748162,1760771440190,-331.4751398,0.00036065,2]
[391748163,1760771440200,-152.0,0.00036071,3]
[391748164,1760771440211,-277.35679052,0.00036072,15]
[391748165,1760771440221,-287.61899177,0.00036072,15]
[391748166,1760771440231,-298.26089446,0.00036072,15]
[391748167,1760771440241,-309.29654756,0.00036072,15]
[391748168,1760771440251,-320.74051982,0.00036072,15]
[391748169,1760771440260,-332.60791905,0.00036072,15]
[391748170,1760771440269,-344.91441206,0.00036072,15]
[391748171,1760771440279,-357.6762453,0.00036072,15]
[391748172,1760771440288,-370.91026638,0.00036072,15]
[391748173,1760771440298,-489.19764104,0.00036072,15]
[391748174,1760771440307,-500.0,0.00036073,5]
[391748175,1760771440316,-500.0,0.00036073,5]
[391748176,1760771440326,-500.0,0.00036073,5]
[391748177,1760771440335,-500.0,0.00036073,5]
[391748178,1760771440344,-162.72,0.00036078,2]
[391748179,1760771440354,-212.35286309,0.00036079,15]
[391748180,1760771440363,-67152.5066744,0.0003608,2]
[391748181,1760771440374,-151.0,0.00036088,17]
[391748182,1760771440383,-156.587,0.00036088,17]
[391748183,1760771440392,-162.380719,0.00036088,17]
[391748184,1760771440402,-168.3888056,0.00036088,17]
[391748185,1760771440411,-174.61919141,0.00036088,17]
[391748186,1760771440420,-203.53097493,0.00036088,17]
[391748187,1760771440430,-9552.16786547,0.00036088,17]
[391748188,1760771440440,-9905.5980765,0.00036088,17]
[391748189,1760771440449,-10272.10520533,0.00036088,17]
[391748190,1760771440460,-10652.17309792,0.00036088,17]
[391748191,1760771440469,-3658.63819401,0.00036088,17]
[391748192,1760771440479,-151.0,0.00036088,120]
[391748193,1760771440488,-151.0,0.00036088,120]
[391748194,1760771440498,-151.0,0.00036088,120]
[391748195,1760771440507,-1257.467679,0.00036088,120]
[391748196,1760771440517,-1257.467679,0.00036088,120]
[391748197,1760771440526,-408.574662,0.00036088,120]
[391748199,1760771440536,-1257.467679,0.00036088,120]
[391748200,1760771440545,-408.574662,0.00036088,120]
[391748201,1760771440555,-1257.467679,0.00036088,120]
[391748202,1760771440563,-408.574662,0.00036088,120]
[391748203,1760771440572,-408.574662,0.00036088,120]
[391748204,1760771440582,-151.0,0.00036088,120]
[391748205,1760771440592,-2530.211258,0.00036088,120]
[391748206,1760771440602,-151.0,0.00036088,120]
[391748207,1760771440611,-151.0,0.00036088,120]
[391748208,1760771440620,-424.841515,0.00036088,120]
[391748209,1760771440629,-2530.211258,0.00036088,120]
[391748210,1760771440639,-151.0,0.00036088,120]
[391748211,1760771440649,-424.841515,0.00036088,120]
[391748212,1760771440659,-2530.211258,0.00036088,120]
[391748213,1760771440669,-151.0,0.00036088,120]
[391748214,1760771440679,-2530.211258,0.00036088,120]
[391748215,1760771440689,-424.841515,0.00036088,120]
[391748216,1760771440699,-151.0,0.00036088,30]
[391748217,1760771440708,-424.841515,0.00036088,120]
[391748218,1760771440717,-151.0,0.00036088,120]
[391748219,1760771440727,-151.0,0.00036088,120]
[391748220,1760771440737,-151.0,0.00036088,120]
[391748221,1760771440748,-151.0,0.00036088,120]
[391748222,1760771440758,-277.624519,0.00036088,120]
[391748223,1760771440767,-165.382071,0.00036088,120]
[391748224,1760771440777,-173.872023,0.00036088,120]
[391748225,1760771440786,-277.624519,0.00036088,120]
[391748226,1760771440795,-165.382071,0.00036088,120]
[391748227,1760771440805,-277.624519,0.00036088,120]
[391748228,1760771440814,-165.382071,0.00036088,120]
[391748229,1760771440823,-283.748746,0.00036088,120]
[391748230,1760771440834,-277.624519,0.00036088,120]
[391748231,1760771440845,-165.382071,0.00036088,120]
[391748232,1760771440854,-283.748746,0.00036088,120]
[391748233,1760771440863,-283.748746,0.00036088,120]
[391748234,1760771440873,-152.243022,0.00036088,120]
[391748235,1760771440882,-283.748746,0.00036088,120]
[391748236,1760771440891,-151.0,0.00036088,120]
[391748237,1760771440902,-274.873817,0.00036088,120]
[391748238,1760771440912,-151.0,0.00036088,120]
[391748239,1760771440921,-274.873817,0.00036088,120]
[391748240,1760771440930,-151.0,0.00036088,120]
[391748241,1760771440939,-274.873817,0.00036088,120]
[391748242,1760771440951,-274.873817,0.00036088,120]
[391748243,1760771440960,-151.0,0.00036088,120]
[391748244,1760771440970,-151.0,0.00036088,120]
[391748245,1760771440979,-173.899807,0.00036088,120]
[391748246,1760771440989,-151.0,0.00036088,120]
[391748247,1760771440999,-151.0,0.00036088,120]
[391748248,1760771441009,-367.155977,0.00036088,120]
[391748249,1760771441019,-367.155977,0.00036088,120]
[391748250,1760771441028,-151.0,0.00036088,120]
[391748251,1760771441038,-367.155977,0.00036088,120]
[391748252,1760771441047,-151.0,0.00036088,120]
[391748253,1760771441057,-367.155977,0.00036088,120]
[391748254,1760771441066,-151.0,0.00036088,120]
[391748255,1760771441076,-151.0,0.00036088,120]
[391748256,1760771441085,-151.0,0.00036088,120]
[391748257,1760771441095,-151.0,0.00036088,120]
[391748258,1760771441104,-151.0,0.00036088,120]
[391748259,1760771441114,-151.0,0.00036088,120]
[391748260,1760771441125,-151.0,0.00036088,120]
[391748261,1760771441135,-151.0,0.00036088,120]
[391748262,1760771441144,-152.660542,0.00036088,120]
[391748263,1760771441154,-151.0,0.00036088,120]
[391748264,1760771441163,-151.0,0.00036088,120]
[391748265,1760771441172,-151.0,0.00036088,120]
[391748266,1760771441182,-151.0,0.00036088,120]
[391748267,1760771441191,-151.0,0.00036088,120]
[391748268,1760771441201,-151.0,0.00036088,120]
[391748269,1760771441211,-151.0,0.00036088,120]
[391748270,1760771441220,-151.0,0.00036088,120]
[391748271,1760771441230,-151.0,0.00036088,120]
[391748272,1760771441239,-151.0,0.00036088,120]
[391748273,1760771441250,-151.0,0.0003609,120]
[391748274,1760771441259,-154.162599,0.0003609,120]
[391748275,1760771441269,-217.953037,0.0003609,120]
[391748276,1760771441279,-151.0,0.0003609,120]
[391748277,1760771441293,-192.200552,0.0003609,120]
[391748278,1760771441303,-151.0,0.0003609,120]
[391748279,1760771441313,-151.0,0.0003609,120]
[391748280,1760771441323,-151.0,0.0003609,120]
[391748281,1760771441333,-192.200552,0.0003609,120]
[391748282,1760771441342,-151.0,0.0003609,120]
[391748283,1760771441352,-151.0,0.0003609,120]
[391748284,1760771441362,-151.0,0.0003609,10]
[391748285,1760771441372,-151.0,0.0003609,120]
[391748286,1760771441381,-192.200552,0.0003609,120]
[391748287,1760771441390,-192.200552,0.0003609,120]
[391748288,1760771441400,-151.0,0.0003609,120]
[391748289,1760771441412,-262.399751,0.0003609,120]
[391748290,1760771441422,-151.0,0.0003609,120]
[391748291,1760771441431,-151.0,0.0003609,120]
[391748292,1760771441441,-151.0,0.0003609,120]
[391748293,1760771441451,-151.0,0.0003609,120]
[391748294,1760771441460,-151.0,0.0003609,120]
[391748295,1760771441470,-151.0,0.0003609,120]
[391748296,1760771441479,-151.0,0.0003609,120]
[391748297,1760771441489,-151.0,0.0003609,120]
[391748298,1760771441499,-218.967891,0.0003609,15]
[391748299,1760771441509,-151.0,0.0003609,120]
[391748300,1760771441518,-218.967891,0.0003609,15]
[391748301,1760771441527,-151.543956,0.0003609,120]
[391748302,1760771441537,-218.967891,0.0003609,15]
[391748303,1760771441546,-153.977514,0.0003609,120]
[391748304,1760771441555,-218.967891,0.0003609,15]
[391748305,1760771441565,-151.0,0.0003609,120]
[391748306,1760771441575,-153.977514,0.0003609,120]
[391748307,1760771441585,-153.977514,0.0003609,120]
[391748308,1760771441594,-341.652426,0.0003609,120]
[391748309,1760771441604,-153.977514,0.0003609,120]
[391748310,1760771441614,-151.0,0.0003609,120]
[391748311,1760771441624,-151.0,0.0003609,120]
[391748312,1760771441634,-341.652426,0.0003609,120]
[391748313,1760771441644,-151.0,0.0003609,120]
[391748314,1760771441653,-341.652426,0.0003609,120]
[391748315,1760771441662,-151.0,0.0003609,120]
[391748316,1760771441671,-341.652426,0.0003609,120]
[391748317,1760771441681,-167.582612,0.0003609,120]
[391748318,1760771441690,-167.582612,0.0003609,120]
[391748319,1760771441699,-167.582612,0.0003609,120]
[391748320,1760771441708,-151.0,0.0003609,120]
[391748321,1760771441717,-167.582612,0.0003609,120]
[391748322,1760771441727,-274.941832,0.0003609,120]
[391748323,1760771441736,-151.0,0.0003609,120]
[391748324,1760771441746,-151.0,0.0003609,120]
[391748325,1760771441755,-151.0,0.0003609,120]
[391748326,1760771441765,-151.0,0.0003609,120]
[391748327,1760771441774,-151.0,0.0003609,120]
[391748328,1760771441784,-151.0,0.0003609,120]
[391748329,1760771441794,-151.0,0.0003609,120]
[391748330,1760771441803,-151.0,0.0003609,120]
[391748331,1760771441813,-226.987094,0.0003609,120]
[391748332,1760771441822,-165.070234,0.0003609,120]
[391748333,1760771441832,-226.987094,0.0003609,120]
[391748334,1760771441842,-165.070234,0.0003609,120]
[391748335,1760771441851,-226.987094,0.0003609,120]
[391748336,1760771441861,-165.070234,0.0003609,120]
[391748337,1760771441870,-151.0,0.0003609,120]
[391748338,1760771441880,-226.987094,0.0003609,120]
[391748339,1760771441889,-691.026286,0.0003609,120]
[391748340,1760771441899,-165.070234,0.0003609,120]
[391748341,1760771441908,-691.026286,0.0003609,120]
[391748342,1760771441917,-151.0,0.0003609,120]
[391748343,1760771441927,-360.058973,0.0003609,120]
[391748344,1760771441936,-691.026286,0.0003609,120]
[391748345,1760771441946,-151.0,0.0003609,120]
[391748346,1760771441956,-691.026286,0.0003609,120]
[391748347,1760771441966,-360.058973,0.0003609,120]
[391748348,1760771441975,-151.0,0.0003609,120]
[391748349,1760771441986,-151.0,0.0003609,120]
[391748350,1760771441995,-151.0,0.0003609,120]
[391748351,1760771442005,-360.058973,0.0003609,120]
[391748352,1760771442014,-151.0,0.0003609,120]
[391748353,1760771442023,-151.0,0.0003609,120]
[391748354,1760771442033,-151.0,0.0003609,120]
[391748355,1760771442042,-360.058973,0.0003609,120]
[391748356,1760771442052,-151.0,0.0003609,120]
[391748357,1760771442061,-151.0,0.0003609,120]
[391748358,1760771442071,-218.019776,0.0003609,120]
[391748359,1760771442081,-151.0,0.0003609,120]
[391748360,1760771442091,-151.0,0.0003609,120]
[391748361,1760771442100,-184.721299,0.0003609,120]
[391748362,1760771442110,-151.0,0.0003609,120]
[391748363,1760771442120,-151.0,0.0003609,120]
[391748364,1760771442130,-266.148592,0.0003609,120]
[391748365,1760771442139,-151.0,0.0003609,120]
[391748366,1760771442148,-152.005589,0.0003609,120]
[391748367,1760771442158,-173.931689,0.0003609,120]
[391748368,1760771442167,-151.0,0.0003609,120]
[391748369,1760771442177,-173.931689,0.0003609,120]
[391748370,1760771442186,-151.0,0.0003609,120]
[391748371,1760771442196,-173.931689,0.0003609,120]
[391748372,1760771442205,-173.931689,0.0003609,120]
[391748373,1760771442216,-151.0,0.0003609,120]
[391748374,1760771442226,-151.0,0.0003609,30]
[391748375,1760771442235,-151.0,0.0003609,30]
[391748376,1760771442244,-151.0,0.0003609,120]
[391748377,1760771442254,-151.0,0.0003609,120]
[391748378,1760771442263,-151.0,0.0003609,120]
[391748379,1760771442273,-151.0,0.0003609,120]
[391748380,1760771442282,-151.0,0.0003609,120]
[391748381,1760771442292,-151.0,0.0003609,120]
[391748382,1760771442302,-151.0,0.0003609,120]
[391748383,1760771442312,-151.0,0.0003609,120]
[391748384,1760771442321,-170.650981,0.0003609,120]
[391748385,1760771442331,-406.81492,0.0003609,120]
[391748386,1760771442340,-151.0,0.0003609,120]
[391748387,1760771442350,-406.81492,0.0003609,120]
[391748388,1760771442360,-151.0,0.0003609,120]
[391748389,1760771442370,-406.81492,0.0003609,120]
[391748390,1760771442379,-406.81492,0.0003609,120]
[391748391,1760771442389,-445.32756,0.0003609,120]
[391748392,1760771442398,-445.32756,0.0003609,120]
[391748393,1760771442407,-151.0,0.0003609,120]
[391748394,1760771442417,-151.0,0.0003609,120]
[391748395,1760771442427,-445.32756,0.0003609,120]
[391748396,1760771442436,-151.0,0.0003609,120]
[391748397,1760771442446,-445.32756,0.0003609,120]
[391748398,1760771442455,-151.0,0.0003609,120]
[391748399,1760771442465,-655.125484,0.0003609,120]
[391748400,1760771442474,-655.125484,0.0003609,120]
[391748401,1760771442484,-655.125484,0.0003609,120]
[391748402,1760771442494,-655.125484,0.0003609,120]
[391748403,1760771442503,-615.44,0.0003609,7]
[391748404,1760771442513,-197.209914,0.0003609,120]
[391748405,1760771442522,-197.209914,0.0003609,120]
[391748406,1760771442532,-197.209914,0.0003609,120]